[Event "Early-Titled-Tuesday-Blitz-March-26-2024"]
[Site "Chess.com"]
[Date "2024.03.26"]
[Round "1"]
[White "GMJustin"]
[Black "LikeWater"]
[Result "0-1"]
[WhiteElo "2373"]
[BlackElo "2707"]
[TimeControl "180+1"]
[EndTime "8:08:01 PDT"]
[Termination "LikeWater won on time"]

1. d4 {[%clk 0:02:54.8]} 1... Nf6 {[%clk 0:02:57.4]} 2. c4 {[%clk 0:02:53.1]}
2... g6 {[%clk 0:02:57.3]} 3. h4 {[%clk 0:02:52]} 3... c5 {[%clk 0:02:48.7]} 4.
d5 {[%clk 0:02:49.2]} 4... b5 {[%clk 0:02:48.8]} 5. cxb5 {[%clk 0:02:47.9]} 5...
a6 {[%clk 0:02:48.9]} 6. e3 {[%clk 0:02:26.4]} 6... axb5 {[%clk 0:02:25.3]} 7.
Bxb5 {[%clk 0:02:27.3]} 7... Qa5+ {[%clk 0:02:14.3]} 8. Nc3 {[%clk 0:02:26.5]}
8... Ne4 {[%clk 0:02:13.8]} 9. Qd3 {[%clk 0:02:18]} 9... Nxc3 {[%clk 0:01:45.7]}
10. Qxc3 {[%clk 0:02:10]} 10... Qxc3+ {[%clk 0:01:45.7]} 11. bxc3 {[%clk
0:02:10.2]} 11... Bg7 {[%clk 0:01:46.6]} 12. Ne2 {[%clk 0:02:06.3]} 12... Ba6
{[%clk 0:01:45.5]} 13. Bxa6 {[%clk 0:01:39.1]} 13... Nxa6 {[%clk 0:01:46.4]} 14.
h5 {[%clk 0:01:39.2]} 14... Nc7 {[%clk 0:01:44.4]} 15. e4 {[%clk 0:01:34.9]}
15... Nb5 {[%clk 0:01:43.8]} 16. Bd2 {[%clk 0:01:29.3]} 16... O-O {[%clk
0:01:36]} 17. hxg6 {[%clk 0:01:26.8]} 17... fxg6 {[%clk 0:01:32.5]} 18. O-O
{[%clk 0:01:23.7]} 18... Ra4 {[%clk 0:01:18.9]} 19. f3 {[%clk 0:01:18.6]} 19...
Rfa8 {[%clk 0:01:16.3]} 20. Rfb1 {[%clk 0:01:17.6]} 20... Rxa2 {[%clk
0:01:01.1]} 21. Rxa2 {[%clk 0:01:18.5]} 21... Rxa2 {[%clk 0:01:01.7]} 22. Rxb5
{[%clk 0:01:15.7]} 22... Rxd2 {[%clk 0:01:01.9]} 23. Kf1 {[%clk 0:01:14.6]}
23... Bh6 {[%clk 0:00:34.8]} 24. Rxc5 {[%clk 0:01:06.1]} 24... Be3 {[%clk
0:00:34.8]} 25. Rc8+ {[%clk 0:01:05.2]} 25... Kf7 {[%clk 0:00:35.3]} 26. g4
{[%clk 0:00:52.8]} 26... Rd1+ {[%clk 0:00:27.2]} 27. Kg2 {[%clk 0:00:53.1]}
27... Rd2 {[%clk 0:00:28.1]} 28. Kf1 {[%clk 0:00:53.2]} 28... h5 {[%clk
0:00:16.7]} 29. gxh5 {[%clk 0:00:50.5]} 29... gxh5 {[%clk 0:00:17.6]} 30. Rh8
{[%clk 0:00:41.8]} 30... Rd1+ {[%clk 0:00:17.8]} 31. Kg2 {[%clk 0:00:41.2]}
31... Rd2 {[%clk 0:00:18.7]} 32. Kf1 {[%clk 0:00:37.7]} 32... Kg6 {[%clk
0:00:19]} 33. Rg8+ {[%clk 0:00:32.3]} 33... Kf6 {[%clk 0:00:18.3]} 34. f4 {[%clk
0:00:27.4]} 34... Rd1+ {[%clk 0:00:07.8]} 35. Kg2 {[%clk 0:00:26.5]} 35... Bc5
{[%clk 0:00:07.7]} 36. Ng3 {[%clk 0:00:17.8]} 36... Rd2+ {[%clk 0:00:05.1]} 37.
Kh3 {[%clk 0:00:17.7]} 37... Rd3 {[%clk 0:00:05.1]} 38. Kh4 {[%clk 0:00:13.5]}
38... Bf2 {[%clk 0:00:05.3]} 39. e5+ {[%clk 0:00:12.7]} 39... Kf7 {[%clk
0:00:05.4]} 40. Rg5 {[%clk 0:00:12.8]} 40... Rxc3 {[%clk 0:00:05.4]} 41. f5
{[%clk 0:00:10.4]} 41... d6 {[%clk 0:00:05]} 42. e6+ {[%clk 0:00:06.8]} 42...
Kf6 {[%clk 0:00:05.6]} 43. Rg6+ {[%clk 0:00:06.6]} 43... Ke5 {[%clk 0:00:06.2]}
44. f6 {[%clk 0:00:04.2]} 44... Rxg3 {[%clk 0:00:04.3]} 45. Rxg3 {[%clk
0:00:02.9]} 45... Bxg3+ {[%clk 0:00:05.1]} 46. Kxh5 {[%clk 0:00:01.1]} 46...
Kxf6 {[%clk 0:00:06]} 0-1

[Event "Early-Titled-Tuesday-Blitz-March-26-2024"]
[Site "Chess.com"]
[Date "2024.03.26"]
[Round "1"]
[White "erugee"]
[Black "marcodobrikov"]
[Result "1-0"]
[WhiteElo "2340"]
[BlackElo "2635"]
[TimeControl "180+1"]
[EndTime "8:08:03 PDT"]
[Termination "erugee won by checkmate"]

1. e4 {[%clk 0:02:59.2]} 1... c6 {[%clk 0:02:59.3]} 2. d3 {[%clk 0:02:58.5]}
2... d5 {[%clk 0:02:59.9]} 3. Nd2 {[%clk 0:02:58.8]} 3... e5 {[%clk 0:02:59.7]}
4. Ngf3 {[%clk 0:02:59.1]} 4... Bd6 {[%clk 0:02:59.4]} 5. g3 {[%clk 0:02:59.6]}
5... Nf6 {[%clk 0:02:59]} 6. Bg2 {[%clk 0:02:59.8]} 6... O-O {[%clk 0:02:59.7]}
7. O-O {[%clk 0:02:59.8]} 7... Bg4 {[%clk 0:02:59.8]} 8. h3 {[%clk 0:03:00]}
8... Bh5 {[%clk 0:03:00.3]} 9. Qe2 {[%clk 0:02:54.7]} 9... Nbd7 {[%clk
0:02:59.4]} 10. Re1 {[%clk 0:02:53.5]} 10... Re8 {[%clk 0:02:59.8]} 11. Nf1
{[%clk 0:02:45.5]} 11... a5 {[%clk 0:02:51.8]} 12. g4 {[%clk 0:02:44.6]} 12...
Bg6 {[%clk 0:02:51.8]} 13. Ng3 {[%clk 0:02:45]} 13... a4 {[%clk 0:02:51.4]} 14.
a3 {[%clk 0:02:43.9]} 14... b5 {[%clk 0:02:50.5]} 15. Nf5 {[%clk 0:02:38.5]}
15... Bxf5 {[%clk 0:02:48.9]} 16. gxf5 {[%clk 0:02:32.6]} 16... d4 {[%clk
0:02:42.9]} 17. Kh1 {[%clk 0:02:20.2]} 17... c5 {[%clk 0:02:41.4]} 18. Rg1
{[%clk 0:02:20.7]} 18... Kh8 {[%clk 0:02:41.2]} 19. Nh2 {[%clk 0:02:19.6]} 19...
Qe7 {[%clk 0:02:40.4]} 20. Bf3 {[%clk 0:02:18.8]} 20... Rac8 {[%clk 0:02:39.6]}
21. Bg5 {[%clk 0:02:16.5]} 21... c4 {[%clk 0:02:38.9]} 22. Rg2 {[%clk
0:01:59.1]} 22... h6 {[%clk 0:02:28.3]} 23. Bh4 {[%clk 0:01:55.4]} 23... Qd8
{[%clk 0:02:19.9]} 24. Rag1 {[%clk 0:01:54.6]} 24... Bf8 {[%clk 0:02:17.4]} 25.
Qd2 {[%clk 0:01:46.6]} 25... c3 {[%clk 0:02:15.7]} 26. bxc3 {[%clk 0:01:43.3]}
26... Rxc3 {[%clk 0:02:16.6]} 27. Ng4 {[%clk 0:01:35.4]} 27... Rxa3 {[%clk
0:02:16.4]} 28. Nxh6 {[%clk 0:00:51.1]} 28... gxh6 {[%clk 0:02:10.9]} 29. Rg8+
{[%clk 0:00:51.6]} 29... Nxg8 {[%clk 0:02:00.7]} 30. Bxd8 {[%clk 0:00:49.7]}
30... Rxd8 {[%clk 0:02:01.6]} 31. Bh5 {[%clk 0:00:37.8]} 31... Rc3 {[%clk
0:01:49.6]} 32. Bxf7 {[%clk 0:00:37.6]} 32... Ndf6 {[%clk 0:01:50]} 33. f4
{[%clk 0:00:32.2]} 33... exf4 {[%clk 0:01:00.8]} 34. Qxf4 {[%clk 0:00:31.2]}
34... Rd7 {[%clk 0:00:54.8]} 35. Be6 {[%clk 0:00:26.7]} 35... Rg7 {[%clk
0:00:54.2]} 36. Rxg7 {[%clk 0:00:25.2]} 36... Bxg7 {[%clk 0:00:54.4]} 37. e5
{[%clk 0:00:25.5]} 37... Nh5 {[%clk 0:00:46.4]} 38. Qh4 {[%clk 0:00:23]} 38...
Bxe5 {[%clk 0:00:35.6]} 39. Qxh5 {[%clk 0:00:22.8]} 39... Rc7 {[%clk 0:00:28.3]}
40. Bf7 {[%clk 0:00:11.5]} 40... a3 {[%clk 0:00:24.8]} 41. Qg6 {[%clk
0:00:11.6]} 41... Bg7 {[%clk 0:00:24.2]} 42. Bxg8 {[%clk 0:00:08.6]} 42... Kxg8
{[%clk 0:00:24.4]} 43. f6 {[%clk 0:00:05.9]} 43... a2 {[%clk 0:00:21.5]} 44.
Qe8+ {[%clk 0:00:06.4]} 44... Bf8 {[%clk 0:00:20.5]} 45. Qe6+ {[%clk 0:00:06.2]}
45... Kh8 {[%clk 0:00:19.3]} 46. Qxa2 {[%clk 0:00:06.9]} 46... b4 {[%clk
0:00:19.7]} 47. Qa5 {[%clk 0:00:05.8]} 47... Rf7 {[%clk 0:00:19.6]} 48. Qf5
{[%clk 0:00:05.3]} 48... Kg8 {[%clk 0:00:15.2]} 49. Qe6 {[%clk 0:00:05.6]} 49...
Bc5 {[%clk 0:00:14.8]} 50. Kg2 {[%clk 0:00:04]} 50... h5 {[%clk 0:00:13]} 51.
Kf3 {[%clk 0:00:04.3]} 51... h4 {[%clk 0:00:13.1]} 52. Ke4 {[%clk 0:00:04.4]}
52... Bf8 {[%clk 0:00:08]} 53. Kf5 {[%clk 0:00:04.5]} 53... Bh6 {[%clk 0:00:08]}
54. Kg6 {[%clk 0:00:04.6]} 54... Bf8 {[%clk 0:00:07.3]} 55. Qxf7+ {[%clk
0:00:05.1]} 55... Kh8 {[%clk 0:00:07]} 56. Qh7# {[%clk 0:00:05.6]} 1-0

[Event "Early-Titled-Tuesday-Blitz-March-26-2024"]
[Site "Chess.com"]
[Date "2024.03.26"]
[Round "1"]
[White "BozeKat"]
[Black "Orest_Vovk"]
[Result "0-1"]
[WhiteElo "2072"]
[BlackElo "2571"]
[TimeControl "180+1"]
[EndTime "8:08:04 PDT"]
[Termination "Orest_Vovk won on time"]

1. d4 {[%clk 0:03:00.9]} 1... Nc6 {[%clk 0:02:56.9]} 2. d5 {[%clk 0:02:57.3]}
2... Ne5 {[%clk 0:02:55.2]} 3. Nc3 {[%clk 0:02:50.2]} 3... Ng6 {[%clk
0:02:47.9]} 4. e4 {[%clk 0:02:49.2]} 4... e5 {[%clk 0:02:46.3]} 5. Be3 {[%clk
0:02:39.7]} 5... Bb4 {[%clk 0:02:45.2]} 6. Ne2 {[%clk 0:02:37.8]} 6... Nf6
{[%clk 0:02:44.4]} 7. a3 {[%clk 0:02:33.3]} 7... Bxc3+ {[%clk 0:02:33.9]} 8.
Nxc3 {[%clk 0:02:34.2]} 8... d6 {[%clk 0:02:33.2]} 9. Qd2 {[%clk 0:02:23.9]}
9... Ng4 {[%clk 0:02:28.2]} 10. O-O-O {[%clk 0:02:00.3]} 10... Nxe3 {[%clk
0:02:24]} 11. Qxe3 {[%clk 0:02:01.2]} 11... O-O {[%clk 0:02:23.7]} 12. h4 {[%clk
0:01:59.9]} 12... h6 {[%clk 0:02:21.5]} 13. g3 {[%clk 0:01:55.1]} 13... f5
{[%clk 0:02:19.6]} 14. h5 {[%clk 0:01:40.6]} 14... f4 {[%clk 0:02:17.4]} 15. Qd3
{[%clk 0:01:25.5]} 15... Ne7 {[%clk 0:01:52.2]} 16. Bh3 {[%clk 0:01:23.5]} 16...
Bxh3 {[%clk 0:01:47]} 17. Rxh3 {[%clk 0:01:24.4]} 17... Qd7 {[%clk 0:01:46.3]}
18. Rdh1 {[%clk 0:01:09.1]} 18... c6 {[%clk 0:01:36.3]} 19. f3 {[%clk
0:00:56.7]} 19... cxd5 {[%clk 0:01:27.9]} 20. Nxd5 {[%clk 0:00:55.8]} 20... Nxd5
{[%clk 0:01:25.9]} 21. Qxd5+ {[%clk 0:00:56.7]} 21... Qf7 {[%clk 0:01:25.9]} 22.
Rd1 {[%clk 0:00:50.6]} 22... Qxd5 {[%clk 0:01:23.7]} 23. Rxd5 {[%clk 0:00:51.5]}
23... fxg3 {[%clk 0:01:23.4]} 24. Rxg3 {[%clk 0:00:52.4]} 24... Rf6 {[%clk
0:01:23.3]} 25. Kd2 {[%clk 0:00:50.1]} 25... Rc8 {[%clk 0:01:21.5]} 26. c3
{[%clk 0:00:48.6]} 26... Rc5 {[%clk 0:01:21]} 27. Rd3 {[%clk 0:00:45.1]} 27...
a5 {[%clk 0:01:12.5]} 28. Rg6 {[%clk 0:00:42.9]} 28... Rxg6 {[%clk 0:01:08.8]}
29. hxg6 {[%clk 0:00:43.8]} 29... Rc6 {[%clk 0:01:08.4]} 30. Rd5 {[%clk
0:00:43.5]} 30... b6 {[%clk 0:01:02.3]} 31. f4 {[%clk 0:00:33.2]} 31... Kf8
{[%clk 0:00:48.7]} 32. fxe5 {[%clk 0:00:30.9]} 32... dxe5 {[%clk 0:00:48.3]} 33.
Rxe5 {[%clk 0:00:25.2]} 33... Rxg6 {[%clk 0:00:48.1]} 34. Rb5 {[%clk 0:00:14.3]}
34... Ke7 {[%clk 0:00:44]} 35. c4 {[%clk 0:00:13.6]} 35... Kd7 {[%clk
0:00:43.2]} 36. c5 {[%clk 0:00:12.5]} 36... bxc5 {[%clk 0:00:38.3]} 37. Rxc5
{[%clk 0:00:12.9]} 37... Ra6 {[%clk 0:00:26.4]} 38. Kc3 {[%clk 0:00:11.4]} 38...
g5 {[%clk 0:00:24.2]} 39. Kd4 {[%clk 0:00:05.7]} 39... g4 {[%clk 0:00:23.2]} 40.
Rh5 {[%clk 0:00:03.3]} 40... g3 {[%clk 0:00:18.4]} 41. Rh1 {[%clk 0:00:03.2]}
41... Rg6 {[%clk 0:00:17.5]} 42. Ke3 {[%clk 0:00:03.4]} 42... Kd6 {[%clk
0:00:07.6]} 43. Kf3 {[%clk 0:00:03.3]} 43... Ke5 {[%clk 0:00:07.1]} 44. Rh5+
{[%clk 0:00:03.1]} 44... Kd4 {[%clk 0:00:07]} 45. Rd5+ {[%clk 0:00:02.4]} 45...
Kc4 {[%clk 0:00:06.8]} 46. Kg2 {[%clk 0:00:01.9]} 46... a4 {[%clk 0:00:06]} 47.
Rd2 {[%clk 0:00:02.3]} 47... h5 {[%clk 0:00:05]} 48. Rc2+ {[%clk 0:00:02.3]}
48... Kb3 {[%clk 0:00:04.7]} 49. Rc3+ {[%clk 0:00:02.5]} 49... Kxb2 {[%clk
0:00:05.2]} 50. Rxg3 {[%clk 0:00:03.3]} 50... Re6 {[%clk 0:00:03.9]} 51. Re3
{[%clk 0:00:02.4]} 51... h4 {[%clk 0:00:03.9]} 52. Kh3 {[%clk 0:00:02.3]} 52...
Kc2 {[%clk 0:00:04.5]} 53. Kxh4 {[%clk 0:00:02.7]} 53... Kd2 {[%clk 0:00:05.1]}
54. Kh3 {[%clk 0:00:03.1]} 54... Kxe3 {[%clk 0:00:04.7]} 0-1

[Event "Early-Titled-Tuesday-Blitz-March-26-2024"]
[Site "Chess.com"]
[Date "2024.03.26"]
[Round "1"]
[White "TimGrutter03"]
[Black "lukazz029"]
[Result "1/2-1/2"]
[WhiteElo "2559"]
[BlackElo "1998"]
[TimeControl "180+1"]
[EndTime "8:08:04 PDT"]
[Termination "Game drawn by repetition"]

1. e4 {[%clk 0:02:59.9]} 1... c5 {[%clk 0:02:59.2]} 2. Nf3 {[%clk 0:03:00.1]}
2... d6 {[%clk 0:02:57.4]} 3. c3 {[%clk 0:02:59.6]} 3... Nf6 {[%clk 0:02:55.4]}
4. Be2 {[%clk 0:03:00.3]} 4... e6 {[%clk 0:02:48.8]} 5. O-O {[%clk 0:02:58.6]}
5... Qc7 {[%clk 0:02:46.8]} 6. Na3 {[%clk 0:02:51.4]} 6... a6 {[%clk 0:02:44.9]}
7. d3 {[%clk 0:02:48]} 7... Be7 {[%clk 0:02:43.9]} 8. h3 {[%clk 0:02:48.1]} 8...
O-O {[%clk 0:02:43.5]} 9. Re1 {[%clk 0:02:48.2]} 9... b5 {[%clk 0:02:39.9]} 10.
Nc2 {[%clk 0:02:42.8]} 10... Bb7 {[%clk 0:02:24.1]} 11. Bf1 {[%clk 0:02:42.4]}
11... Nbd7 {[%clk 0:02:22.7]} 12. Bf4 {[%clk 0:02:37.9]} 12... e5 {[%clk
0:02:19.6]} 13. Bg5 {[%clk 0:02:32.4]} 13... Rfe8 {[%clk 0:02:05.6]} 14. g3
{[%clk 0:02:25.9]} 14... Nf8 {[%clk 0:02:05.2]} 15. Bg2 {[%clk 0:02:25.4]} 15...
Ne6 {[%clk 0:02:01.1]} 16. Bxf6 {[%clk 0:02:19.6]} 16... Bxf6 {[%clk 0:01:59.8]}
17. Ne3 {[%clk 0:02:20.2]} 17... g6 {[%clk 0:01:57.3]} 18. Qd2 {[%clk
0:02:10.6]} 18... h5 {[%clk 0:01:51.4]} 19. Rad1 {[%clk 0:02:05.3]} 19... Rad8
{[%clk 0:01:50.5]} 20. Qc2 {[%clk 0:01:41.9]} 20... Bg7 {[%clk 0:01:39.9]} 21.
a4 {[%clk 0:01:37.6]} 21... Bc6 {[%clk 0:01:36.1]} 22. axb5 {[%clk 0:01:31.2]}
22... axb5 {[%clk 0:01:37]} 23. Nd5 {[%clk 0:01:28.7]} 23... Qb7 {[%clk
0:01:35.2]} 24. Nd2 {[%clk 0:01:21.4]} 24... Bxd5 {[%clk 0:01:30.6]} 25. exd5
{[%clk 0:01:21.1]} 25... Nc7 {[%clk 0:01:31.5]} 26. c4 {[%clk 0:01:15.6]} 26...
f5 {[%clk 0:01:25.6]} 27. b3 {[%clk 0:01:04.5]} 27... Ra8 {[%clk 0:01:24.3]} 28.
Ra1 {[%clk 0:00:59.4]} 28... Rxa1 {[%clk 0:01:21.9]} 29. Rxa1 {[%clk 0:01:00.3]}
29... e4 {[%clk 0:01:22.3]} 30. Re1 {[%clk 0:00:59.6]} 30... exd3 {[%clk
0:01:20.7]} 31. Rxe8+ {[%clk 0:00:59.2]} 31... Nxe8 {[%clk 0:01:21.6]} 32. Qxd3
{[%clk 0:00:58.3]} 32... bxc4 {[%clk 0:01:12.9]} 33. Nxc4 {[%clk 0:00:56.9]}
33... Qe7 {[%clk 0:01:09.4]} 34. Kf1 {[%clk 0:00:47]} 34... Bd4 {[%clk
0:01:06.9]} 35. g4 {[%clk 0:00:45.1]} 35... hxg4 {[%clk 0:01:01.8]} 36. hxg4
{[%clk 0:00:45.3]} 36... Qh4 {[%clk 0:01:01.2]} 37. Qe2 {[%clk 0:00:42.2]} 37...
Kf8 {[%clk 0:00:33.4]} 38. gxf5 {[%clk 0:00:41.9]} 38... gxf5 {[%clk 0:00:34]}
39. Ne3 {[%clk 0:00:31.2]} 39... Qf4 {[%clk 0:00:29.2]} 40. Kg1 {[%clk
0:00:09.9]} 40... Bxe3 {[%clk 0:00:25.8]} 41. fxe3 {[%clk 0:00:10.8]} 41... Qe5
{[%clk 0:00:23.6]} 42. Qf3 {[%clk 0:00:09.5]} 42... Ke7 {[%clk 0:00:15.6]} 43.
Bh3 {[%clk 0:00:08.1]} 43... Ng7 {[%clk 0:00:15]} 44. Kg2 {[%clk 0:00:06.1]}
44... Qb2+ {[%clk 0:00:14.9]} 45. Kg3 {[%clk 0:00:06.5]} 45... Qe5+ {[%clk
0:00:15.1]} 46. Kh4 {[%clk 0:00:04.4]} 46... Qf6+ {[%clk 0:00:14.6]} 47. Kg3
{[%clk 0:00:04.9]} 47... Qe5+ {[%clk 0:00:15]} 48. Kg2 {[%clk 0:00:02.4]} 48...
Qb2+ {[%clk 0:00:14.8]} 49. Kh1 {[%clk 0:00:03]} 49... Qxb3 {[%clk 0:00:14.2]}
50. Bxf5 {[%clk 0:00:02.7]} 50... Nxf5 {[%clk 0:00:11.8]} 51. Qxf5 {[%clk
0:00:03.6]} 51... Qd1+ {[%clk 0:00:11.4]} 52. Kh2 {[%clk 0:00:02.6]} 52... Qe2+
{[%clk 0:00:11.5]} 53. Kh1 {[%clk 0:00:03.2]} 53... Qe1+ {[%clk 0:00:11.1]} 54.
Kh2 {[%clk 0:00:03.3]} 54... Qe2+ {[%clk 0:00:11.3]} 55. Kh1 {[%clk 0:00:03.7]}
55... Qe1+ {[%clk 0:00:11.6]} 56. Kg2 {[%clk 0:00:03.7]} 56... Qe2+ {[%clk
0:00:11.5]} 57. Kh1 {[%clk 0:00:02.6]} 1/2-1/2

[Event "Early-Titled-Tuesday-Blitz-March-26-2024"]
[Site "Chess.com"]
[Date "2024.03.26"]
[Round "1"]
[White "reevecanada"]
[Black "twitchTriniCupid"]
[Result "1-0"]
[WhiteElo "2667"]
[BlackElo "2335"]
[TimeControl "180+1"]
[EndTime "8:08:05 PDT"]
[Termination "reevecanada won by resignation"]

1. b3 {[%clk 0:02:51.8]} 1... c5 {[%clk 0:02:57.5]} 2. Bb2 {[%clk 0:02:43.3]}
2... Nf6 {[%clk 0:02:57.2]} 3. d3 {[%clk 0:02:43.9]} 3... d5 {[%clk 0:02:56.3]}
4. Nd2 {[%clk 0:02:44.6]} 4... g6 {[%clk 0:02:50.6]} 5. Ngf3 {[%clk 0:02:43.2]}
5... Bg7 {[%clk 0:02:50.9]} 6. e4 {[%clk 0:02:43.8]} 6... O-O {[%clk 0:02:51.3]}
7. e5 {[%clk 0:02:43.1]} 7... Ng4 {[%clk 0:02:41.8]} 8. h3 {[%clk 0:02:40.8]}
8... Nh6 {[%clk 0:02:42.1]} 9. Qe2 {[%clk 0:02:40.2]} 9... f6 {[%clk 0:02:20.3]}
10. exf6 {[%clk 0:02:29.6]} 10... exf6 {[%clk 0:02:20.1]} 11. Qd1 {[%clk
0:02:18.7]} 11... Nf5 {[%clk 0:02:07.8]} 12. Be2 {[%clk 0:02:18.6]} 12... Nc6
{[%clk 0:02:07.2]} 13. O-O {[%clk 0:02:17.8]} 13... Be6 {[%clk 0:02:01.9]} 14.
c3 {[%clk 0:02:16.2]} 14... Qd7 {[%clk 0:01:57]} 15. d4 {[%clk 0:02:14.5]} 15...
cxd4 {[%clk 0:01:54.9]} 16. cxd4 {[%clk 0:02:15.4]} 16... Rac8 {[%clk 0:01:50]}
17. Rc1 {[%clk 0:02:14.9]} 17... Nb4 {[%clk 0:01:44.5]} 18. Ba3 {[%clk
0:02:12.3]} 18... a5 {[%clk 0:01:43.6]} 19. Nb1 {[%clk 0:02:10.4]} 19... Nxa2
{[%clk 0:01:31.5]} 20. Rxc8 {[%clk 0:02:01.3]} 20... Rxc8 {[%clk 0:01:32.1]} 21.
Qd2 {[%clk 0:01:59.2]} 21... Nb4 {[%clk 0:01:23.9]} 22. Bxb4 {[%clk 0:01:58.1]}
22... axb4 {[%clk 0:01:24.8]} 23. Qxb4 {[%clk 0:01:58.3]} 23... Bf8 {[%clk
0:01:15.9]} 24. Qd2 {[%clk 0:01:57.2]} 24... Qc6 {[%clk 0:01:10.8]} 25. Bd3
{[%clk 0:01:55.8]} 25... Qb6 {[%clk 0:01:10.2]} 26. Qb2 {[%clk 0:01:54.1]} 26...
Bb4 {[%clk 0:01:03.7]} 27. Kh1 {[%clk 0:01:49.3]} 27... Nd6 {[%clk 0:00:56.3]}
28. Qe2 {[%clk 0:01:37.7]} 28... Bf7 {[%clk 0:00:55.8]} 29. Qe3 {[%clk
0:01:29.9]} 29... Kg7 {[%clk 0:00:55.5]} 30. Qf4 {[%clk 0:01:28.6]} 30... Qa5
{[%clk 0:00:32.3]} 31. h4 {[%clk 0:01:27.5]} 31... Qc7 {[%clk 0:00:21.6]} 32. h5
{[%clk 0:01:25.3]} 32... Ne8 {[%clk 0:00:21.6]} 33. h6+ {[%clk 0:01:24.1]} 33...
Kg8 {[%clk 0:00:21.3]} 34. Qe3 {[%clk 0:01:22.8]} 34... Qd6 {[%clk 0:00:20.4]}
35. g4 {[%clk 0:01:18.1]} 35... Rc7 {[%clk 0:00:20.5]} 36. Kg2 {[%clk
0:01:15.9]} 36... Re7 {[%clk 0:00:20.6]} 37. Qc1 {[%clk 0:01:16.4]} 37... Rc7
{[%clk 0:00:19.4]} 38. Qe3 {[%clk 0:00:37.7]} 38... Re7 {[%clk 0:00:19.6]} 39.
Qc1 {[%clk 0:00:38.4]} 39... Qd7 {[%clk 0:00:20]} 40. Qd1 {[%clk 0:00:39.1]}
40... Qxg4+ {[%clk 0:00:19.9]} 41. Kh2 {[%clk 0:00:37]} 41... Bd6+ {[%clk
0:00:19]} 42. Kh1 {[%clk 0:00:36.3]} 42... Qh3+ {[%clk 0:00:18.8]} 43. Kg1
{[%clk 0:00:36.5]} 43... Re4 {[%clk 0:00:17.2]} 44. Bxe4 {[%clk 0:00:34.7]}
44... dxe4 {[%clk 0:00:17.6]} 45. Nbd2 {[%clk 0:00:26.6]} 45... Qg4+ {[%clk
0:00:16.6]} 46. Kh1 {[%clk 0:00:25.4]} 46... Qh5+ {[%clk 0:00:13.3]} 47. Kg1
{[%clk 0:00:20]} 47... Bd5 {[%clk 0:00:13.5]} 48. Qe2 {[%clk 0:00:19.3]} 48...
Qg4+ {[%clk 0:00:13.2]} 49. Kh1 {[%clk 0:00:18.3]} 49... Kf7 {[%clk 0:00:13.3]}
50. Ne5+ {[%clk 0:00:15]} 50... Bxe5 {[%clk 0:00:13.4]} 51. Qxg4 {[%clk
0:00:15.6]} 51... e3+ {[%clk 0:00:14]} 52. Nf3 {[%clk 0:00:15.6]} 52... f5
{[%clk 0:00:12.9]} 53. Qg2 {[%clk 0:00:14.8]} 53... Bf6 {[%clk 0:00:11.5]} 54.
Ng5+ {[%clk 0:00:13.8]} 54... Bxg5 {[%clk 0:00:10.4]} 55. Qxd5+ {[%clk
0:00:14.7]} 55... Kf8 {[%clk 0:00:10.3]} 56. Qe5 {[%clk 0:00:14.3]} 56... Bxh6
{[%clk 0:00:10.2]} 57. Qh8+ {[%clk 0:00:13.6]} 57... Kf7 {[%clk 0:00:10.5]} 58.
Qxh7+ {[%clk 0:00:14.3]} 58... Bg7 {[%clk 0:00:11.4]} 59. fxe3 {[%clk
0:00:14.1]} 59... Nd6 {[%clk 0:00:11.9]} 60. Qh3 {[%clk 0:00:13.4]} 60... Ne4
{[%clk 0:00:12]} 61. Qg2 {[%clk 0:00:13.7]} 61... g5 {[%clk 0:00:12.2]} 62. Qxe4
{[%clk 0:00:13.7]} 1-0

[Event "Early-Titled-Tuesday-Blitz-March-26-2024"]
[Site "Chess.com"]
[Date "2024.03.26"]
[Round "1"]
[White "Byniolus"]
[Black "ljuks68"]
[Result "1-0"]
[WhiteElo "2745"]
[BlackElo "2411"]
[TimeControl "180+1"]
[EndTime "8:08:07 PDT"]
[Termination "Byniolus won on time"]

1. d4 {[%clk 0:03:00.9]} 1... d5 {[%clk 0:02:59.3]} 2. Nf3 {[%clk 0:03:00.8]}
2... Nf6 {[%clk 0:02:59.6]} 3. Bf4 {[%clk 0:03:01]} 3... c5 {[%clk 0:02:59.7]}
4. c3 {[%clk 0:03:01.6]} 4... Nc6 {[%clk 0:03:00.2]} 5. Nbd2 {[%clk 0:03:02.1]}
5... Qb6 {[%clk 0:03:00.6]} 6. Qb3 {[%clk 0:03:02]} 6... c4 {[%clk 0:03:00.4]}
7. Qc2 {[%clk 0:03:02.5]} 7... Bg4 {[%clk 0:02:59.2]} 8. b3 {[%clk 0:02:58.8]}
8... cxb3 {[%clk 0:02:58.6]} 9. Qxb3 {[%clk 0:02:59.7]} 9... e6 {[%clk
0:02:49.1]} 10. e3 {[%clk 0:02:58.3]} 10... Bf5 {[%clk 0:02:26.9]} 11. Be2
{[%clk 0:02:32.6]} 11... h6 {[%clk 0:02:18]} 12. O-O {[%clk 0:02:31]} 12... Be7
{[%clk 0:02:18.1]} 13. c4 {[%clk 0:02:28.8]} 13... dxc4 {[%clk 0:02:11.3]} 14.
Qxb6 {[%clk 0:02:21.4]} 14... axb6 {[%clk 0:02:11.1]} 15. Nxc4 {[%clk
0:02:22.3]} 15... b5 {[%clk 0:02:10.6]} 16. Nd6+ {[%clk 0:02:14.7]} 16... Bxd6
{[%clk 0:02:10.4]} 17. Bxd6 {[%clk 0:02:15.6]} 17... b4 {[%clk 0:01:50.5]} 18.
Bb5 {[%clk 0:02:05.7]} 18... Ne4 {[%clk 0:01:31.8]} 19. Bxb4 {[%clk 0:01:58.6]}
19... f6 {[%clk 0:01:25]} 20. Rfc1 {[%clk 0:01:53.3]} 20... Rc8 {[%clk
0:01:24.7]} 21. h3 {[%clk 0:01:32.2]} 21... Kf7 {[%clk 0:01:24.5]} 22. Be1
{[%clk 0:01:31.6]} 22... Ne7 {[%clk 0:01:16.4]} 23. Bd7 {[%clk 0:01:14.1]} 23...
Rxc1 {[%clk 0:01:15.7]} 24. Rxc1 {[%clk 0:01:15]} 24... Ra8 {[%clk 0:01:09.1]}
25. a4 {[%clk 0:01:13.4]} 25... Nd5 {[%clk 0:01:08]} 26. Bb5 {[%clk 0:00:58.9]}
26... Nd6 {[%clk 0:00:56.8]} 27. Nd2 {[%clk 0:00:44.5]} 27... Nxb5 {[%clk
0:00:39.1]} 28. axb5 {[%clk 0:00:45.4]} 28... Bd3 {[%clk 0:00:28.1]} 29. e4
{[%clk 0:00:21.6]} 29... Nf4 {[%clk 0:00:28.4]} 30. Rc7+ {[%clk 0:00:21.6]}
30... Kg6 {[%clk 0:00:28.8]} 31. Kh2 {[%clk 0:00:13.6]} 31... Ra1 {[%clk
0:00:18.7]} 32. Nf3 {[%clk 0:00:11.6]} 32... Bxe4 {[%clk 0:00:16.6]} 33. Nh4+
{[%clk 0:00:08.2]} 33... Kh7 {[%clk 0:00:09.9]} 34. Bd2 {[%clk 0:00:09.1]} 34...
Nd3 {[%clk 0:00:03.9]} 35. f3 {[%clk 0:00:08.2]} 35... Bd5 {[%clk 0:00:04.3]}
36. g4 {[%clk 0:00:06.4]} 36... Rb1 {[%clk 0:00:04.3]} 37. Ng2 {[%clk 0:00:06]}
37... Rxb5 {[%clk 0:00:04]} 38. Ne3 {[%clk 0:00:05.5]} 38... Rb2 {[%clk
0:00:04.3]} 39. Rc2 {[%clk 0:00:05]} 39... Rxc2 {[%clk 0:00:04.2]} 40. Nxc2
{[%clk 0:00:05.9]} 40... Bxf3 {[%clk 0:00:04.7]} 41. Kg3 {[%clk 0:00:06.1]}
41... Bd5 {[%clk 0:00:05.2]} 42. Nb4 {[%clk 0:00:05.7]} 42... g5 {[%clk
0:00:05.4]} 43. Nxd3 {[%clk 0:00:05.8]} 43... Kg6 {[%clk 0:00:04.8]} 44. Nc5
{[%clk 0:00:04.9]} 44... f5 {[%clk 0:00:04.7]} 45. Nd7 {[%clk 0:00:04.9]} 45...
f4+ {[%clk 0:00:04.6]} 46. Kf2 {[%clk 0:00:05.5]} 46... Kf7 {[%clk 0:00:04.4]}
47. Bb4 {[%clk 0:00:05.5]} 47... Be4 {[%clk 0:00:04]} 48. Nc5 {[%clk 0:00:05.1]}
48... Bc6 {[%clk 0:00:04.7]} 49. Nd3 {[%clk 0:00:04.8]} 49... Kf6 {[%clk
0:00:04.5]} 50. Ne5 {[%clk 0:00:05.7]} 50... Bd5 {[%clk 0:00:04.8]} 51. Bf8
{[%clk 0:00:05]} 51... h5 {[%clk 0:00:04]} 52. gxh5 {[%clk 0:00:05.9]} 52... Be4
{[%clk 0:00:03.2]} 53. h6 {[%clk 0:00:05.5]} 53... g4 {[%clk 0:00:03.6]} 54.
Bg7+ {[%clk 0:00:05.7]} 54... Kg5 {[%clk 0:00:03.5]} 55. hxg4 {[%clk 0:00:06.3]}
1-0